fUSD/lending_fUSD_20251017
["ID","MTS","AMOUNT","RATE_DAILY","PERIOD"]
[391713994,1760741449055,-151.0,0.0003538,20]
[391713995,1760741449064,-151.0,0.0003538,30]
[391713996,1760741449073,-151.0,0.0003538,20]
[391713997,1760741449082,-151.0,0.0003538,30]
[391713998,1760741449092,-151.0,0.0003538,30]
[391713999,1760741449101,-151.0,0.0003538,30]
[391714000,1760741449110,-151.0,0.0003538,30]
[391714001,1760741449119,-170.826332,0.0003538,30]
[391714002,1760741449129,-151.0,0.0003538,30]
[391714003,1760741449138,-151.0,0.0003538,30]
[391714004,1760741449147,-151.0,0.0003538,30]
[391714005,1760741449156,-199.765565,0.0003538,30]
[391714006,1760741449166,-199.765565,0.0003538,30]
[391714007,1760741449175,-199.765565,0.0003538,30]
[391714008,1760741449184,-151.0,0.0003538,30]
[391714009,1760741449193,-199.765565,0.0003538,30]
[391714010,1760741449202,-151.0,0.0003538,30]
[391714011,1760741449211,-151.0,0.0003538,30]
[391714012,1760741449220,-151.0,0.0003538,30]
[391714013,1760741449229,-24638.85912875,0.0003538,2]
[391714014,1760741449246,-938.53187227,0.0003538,2]
[391714015,1760741449257,-1028.23826436,0.0003538,2]
[391714016,1760741449268,-2538.77574404,0.0003538,2]
[391714017,1760741449475,-153.0,0.00024442,2]
[391714018,1760741449484,-473.156732,0.0003537,30]
[391714019,1760741449493,-2586.843268,0.0003538,2]
[391714020,1760741449508,-11205.30407656,0.0003538,2]
[391714021,1760741449520,-641.339223,0.0003538,2]
[391714022,1760741449531,-783.93199998,0.0003538,2]
[391714023,1760741459048,2037.8108731,0.00032056,30]
[391714024,1760741462223,195.0,0.00026886,120]
[391714050,1760741763842,200.0,0.00032056,120]
[391714087,1760742631646,-807.71143969,0.000197,2]
[391714088,1760742631656,-150.0,0.000197,2]
[391714089,1760742631664,-250.0,0.00019701,2]
[391714090,1760742631673,-195.0,0.00019701,2]
[391714091,1760742631683,-300.0,0.00019702,2]
[391714092,1760742631692,-350.85194784,0.00019822,2]
[391714093,1760742631702,-195.0,0.00019845,2]
[391714094,1760742631710,-807.71143969,0.000199,2]
[391714095,1760742631719,-888.60556259,0.000199,2]
[391714096,1760742631728,-617.47745413,0.000201,2]
[391714097,1760742631768,-190.23398556,0.000201,2]
[391714098,1760742631778,-137.54182883,0.000203,2]
[391714131,1760742637559,-611.8212,0.000203,2]
[391714182,1760742639546,-58.34841086,0.000203,2]
[391714183,1760742639557,-160.0,0.00020413,2]
[391714184,1760742639566,-807.71143969,0.000205,2]
[391714185,1760742639575,-566.27091335,0.00021666,2]
[391714186,1760742639606,-633.72908665,0.00021666,2]
[391714188,1760742639615,-581.0,0.00021667,2]
[391714189,1760742639624,-300.0,0.00021669,2]
[391714190,1760742639634,-300.0,0.00021669,2]
[391714191,1760742639643,-300.0,0.0002167,2]
[391714192,1760742639653,-300.0,0.0002167,2]
[391714193,1760742639662,-300.0,0.0002167,2]
[391714194,1760742639672,-250.0,0.0002167,2]
[391714195,1760742639682,-195.0,0.0002167,2]
[391714196,1760742639691,-475.6557911,0.00022046,2]
[391714197,1760742639701,-1544.33849423,0.000225,2]
[391714198,1760742639711,-420.0,0.00023555,2]
[391714199,1760742639720,-300.0,0.00023555,2]
[391714200,1760742639730,-1200.0,0.00023663,2]
[391714201,1760742639739,-153.0,0.00024188,2]
[391714202,1760742639748,-153.0,0.00024188,2]
[391714203,1760742639757,-153.0,0.00024188,2]
[391714204,1760742639770,-153.0,0.00024188,2]
[391714205,1760742639780,-153.0,0.00024188,2]
[391714206,1760742639789,-153.0,0.00024188,2]
[391714207,1760742639798,-153.0,0.00024188,2]
[391714208,1760742639807,-153.0,0.00024188,2]
[391714209,1760742639816,-321.0,0.00025605,2]
[391714210,1760742639827,-405.0,0.0002601,2]
[391714211,1760742639836,-500.0,0.0002675,2]
[391714212,1760742639846,-475.77190794,0.0002675,2]
[391714213,1760742639855,-500.0,0.0002675,2]
[391714214,1760742639865,-500.0,0.0002675,2]
[391714215,1760742639875,-371.60698256,0.0002675,2]
[391714216,1760742639884,-1000.0,0.000268,2]
[391714217,1760742639894,-263.0496089,0.00026888,2]
[391714218,1760742639907,-500.0,0.00027067,2]
[391714219,1760742639917,-5061.291,0.00027397,16]
[391714220,1760742639926,-329.564,0.00027397,16]
[391714221,1760742639936,-1144.1375,0.00027397,2]
[391714222,1760742639945,-549.91691229,0.0002752,2]
[391714223,1760742639955,-1000.0,0.00027615,5]
[391714225,1760742639965,-207.20005373,0.0002896,2]
[391714227,1760742639974,-578.53,0.00028989,2]
[391714229,1760742639984,-300.0,0.0002947,2]
[391714231,1760742639994,-1852.42,0.0002955,2]
[391714233,1760742640003,-250.0,0.00029585,7]
[391714235,1760742640012,-666.0,0.00029788,3]
[391714237,1760742640021,-2288.275,0.00030136,3]
[391714239,1760742640031,-2751.0,0.0003016,120]
[391714240,1760742640040,-17470.42,0.00030321,2]
[391714243,1760742640050,-1000.0,0.000304,2]
[391714245,1760742640059,-191.03,0.00030477,91]
[391714248,1760742640069,-153.0,0.00030617,2]
[391714250,1760742640078,-153.0,0.00030617,2]
[391714251,1760742640088,-153.0,0.00030617,2]
[391714253,1760742640097,-153.0,0.00030617,2]
[391714255,1760742640106,-153.0,0.00030617,2]
[391714257,1760742640116,-153.0,0.00030617,2]
[391714260,1760742640125,-153.0,0.00030617,2]
[391714262,1760742640136,-153.0,0.00030617,2]
[391714264,1760742640145,-153.0,0.00030617,2]
[391714265,1760742640154,-153.0,0.00030617,2]
[391714267,1760742640164,-153.0,0.00030617,2]
[391714269,1760742640173,-153.0,0.00030617,2]
[391714272,1760742640184,-153.0,0.00030617,2]
[391714274,1760742640194,-153.0,0.00030617,2]
[391714276,1760742640203,-153.0,0.00030617,2]
[391714278,1760742640213,-153.0,0.00030617,2]
[391714280,1760742640222,-1000.0,0.00030619,2]
[391714282,1760742640231,-161.76830817,0.00030791,2]
[391714284,1760742640241,-153.0,0.00031,120]
[391714286,1760742640250,-166.66,0.00031277,2]
[391714288,1760742640259,-1000.0,0.00031453,2]
[391714290,1760742640269,-150.0,0.00031795,2]
[391714292,1760742640278,-153.0,0.000318,120]
[391714294,1760742640287,-276.67396807,0.00031898,2]
[391714296,1760742640296,-1950.39238543,0.00032,30]
[391714298,1760742640306,-150.0,0.00032058,2]
[391714300,1760742640315,-1000.0,0.00032058,30]
[391714302,1760742640324,-216.58,0.000322,30]
[391714303,1760742640334,-166.66,0.0003231,2]
[391714305,1760742640343,-153.0,0.000326,120]
[391714307,1760742640353,-3432.4125,0.00032876,4]
[391714309,1760742640366,-207.64269285,0.00032877,2]
[391714311,1760742640375,-166.66,0.00033342,2]
[391714313,1760742640385,-153.0,0.000335,120]
[391714315,1760742640395,-300.0,0.0003361,64]
[391714317,1760742640404,-319.0,0.00033644,2]
[391714319,1760742640414,-2000.0,0.000338,2]
[391714321,1760742640423,-1000.0,0.000341,2]
[391714323,1760742640434,-153.0,0.000343,120]
[391714325,1760742640442,-166.66,0.00034375,2]
[391714327,1760742640452,-277.35679052,0.00034834,2]
[391714329,1760742640461,-1313.56317372,0.00034849,120]
[391714331,1760742640471,-2197.03891576,0.0003503,2]
[391714333,1760742640480,-153.0,0.000351,120]
[391714335,1760742640490,-1689.59212893,0.00035248,2]
[391714337,1760742640499,-198.95642305,0.0003527,15]
[391714339,1760742640509,-1093.3037,0.00035278,2]
[391714341,1760742640518,-161.28311446,0.00035279,2]
[391714343,1760742640527,-771.68,0.00035338,2]
[391714345,1760742640537,-771.68,0.00035338,2]
[391714347,1760742640546,-771.68,0.00035338,2]
[391714349,1760742640556,-771.68,0.00035338,2]
[391714351,1760742640565,-771.68,0.00035338,2]
[391714353,1760742640575,-162.66,0.00035338,2]
[391714355,1760742640585,-500.0,0.00035347,2]
[391714357,1760742640594,-500.0,0.00035347,7]
[391714359,1760742640603,-500.0,0.00035347,7]
[391714361,1760742640612,-500.0,0.00035347,2]
[391714363,1760742640622,-500.0,0.00035347,7]
[391714365,1760742640631,-500.0,0.00035347,7]
[391714367,1760742640640,-152.69157207,0.00035347,7]
[391714369,1760742640649,-500.0,0.00035347,2]
[391714371,1760742640659,-511.95129286,0.00035347,7]
[391714373,1760742640668,-424.40769948,0.00035347,2]
[391714375,1760742640677,-500.0,0.00035347,7]
[391714377,1760742640687,-500.0,0.00035347,2]
[391714379,1760742640696,-500.0,0.00035347,7]
[391714381,1760742640704,-500.0,0.00035347,2]
[391714383,1760742640714,-500.0,0.00035347,7]
[391714385,1760742640724,-500.0,0.00035347,2]
[391714387,1760742640733,-500.0,0.00035347,7]
[391714389,1760742640742,-500.0,0.00035347,2]
[391714391,1760742640751,-500.0,0.00035347,2]
[391714393,1760742640761,-352.87914029,0.00035347,7]
[391714395,1760742640770,-500.0,0.00035347,7]
[391714397,1760742640779,-500.0,0.00035347,7]
[391714399,1760742640788,-500.0,0.00035347,7]
[391714401,1760742640797,-500.0,0.00035347,7]
[391714403,1760742640806,-195425.53154333,0.00035348,2]
[391714521,1760742642715,-2141.8,0.00035348,2]
[391714523,1760742642727,-23401.68943596,0.00035348,2]
[391714532,1760742642808,-15025.11040711,0.00035348,2]
[391714534,1760742642845,-1173.42251106,0.00035348,2]
[391714548,1760742645735,-153.0,0.00030617,2]
[391714549,1760742645745,-153.0,0.00030617,2]
[391714550,1760742645754,-1517.94239255,0.00035348,2]
[391714551,1760742645768,-2586.94863154,0.00035348,2]
[391714552,1760742645779,-4218.55484497,0.00035348,2]
[391714553,1760742645887,-1090.10724718,0.00035348,2]
[391714554,1760742645899,-458.92036248,0.00035348,2]
[391715356,1760743831862,-304.96,0.00013699,2]
[391715357,1760743831872,-1483.71155344,0.0001439,2]
[391715389,1760743837794,-2199.43282585,0.0001439,2]
[391715390,1760743837805,-300.0,0.00016298,2]
[391715404,1760743838047,-10000.0,0.00016299,2]
[391715406,1760743838057,-165.31390391,0.00017973,2]
[391715409,1760743838067,-214.01852963,0.00017973,2]
[391715411,1760743838077,-500.0,0.00017973,2]
[391715412,1760743838087,-500.45473872,0.00017973,2]
[391715415,1760743838096,-501.74098893,0.00017973,2]
[391715417,1760743838105,-500.0,0.00017973,2]
[391715419,1760743838115,-46524.84511364,0.00018,2]
[391715421,1760743838128,-981.06085215,0.00018,2]
[391715423,1760743838140,-5323.5857467,0.00018,2]
[391715425,1760743838151,-2627.9749611,0.00018,2]
[391715428,1760743838162,-305.96311241,0.00018,2]
[391715481,1760743838812,-4000.0,0.00018,2]
[391715555,1760743839793,-139947.11548273,0.00018,2]
[391715556,1760743839804,-163.2058352,0.00018481,2]
[391715557,1760743839815,-219.49396359,0.00019573,2]
[391715558,1760743839829,-1669.72447984,0.00019591,2]
[391715559,1760743839839,-475.6557911,0.00019691,2]
[391715560,1760743839848,-321.76048138,0.000197,2]
[391715561,1760743839858,-203.94039999,0.000197,2]
[391715562,1760743839867,-321.76048138,0.000199,2]
[391715563,1760743839877,-203.94039999,0.000199,2]
[391715564,1760743839887,-321.76048138,0.000201,2]
[391715565,1760743839896,-203.94039999,0.000201,2]
[391715566,1760743839905,-304.96,0.00020187,2]
[391715567,1760743839915,-321.76048138,0.000203,2]
[391715568,1760743839925,-321.76048138,0.000205,2]
[391715569,1760743839935,-276.21031579,0.00020664,2]
[391715570,1760743839945,-491.6008555,0.00020899,2]
[391715571,1760743839954,-594.76434892,0.00020899,2]
[391715572,1760743839963,-39946.83256313,0.000209,30]
[391715573,1760743839972,-333.27027345,0.00021755,2]
[391715574,1760743839982,-1669.72447975,0.0002207,2]
[391715575,1760743839991,-390.61756746,0.00022846,2]
[391715576,1760743840001,-448.2119967,0.00023938,2]
[391715577,1760743840014,-1669.72447975,0.00024549,2]
[391715578,1760743840024,-1881.99999985,0.00025,7]
[391715579,1760743840036,-506.02337007,0.00025029,2]
[391715580,1760743840045,-200.0,0.0002559,2]
[391715581,1760743840055,-564.02816335,0.0002612,4]
[391715582,1760743840064,-304.96,0.00026676,2]
[391715583,1760743840074,-151.10418752,0.0002675,2]
[391715584,1760743840083,-625.813,0.000269,30]
[391715585,1760743840094,-1000.0,0.000269,90]
[391715586,1760743840104,-1000.0,0.000269,90]
[391715587,1760743840113,-1000.0,0.000269,90]
[391715588,1760743840123,-1000.0,0.000269,90]
[391715589,1760743840132,-1000.0,0.000269,90]
[391715590,1760743840141,-1669.72447975,0.00027027,2]
[391715591,1760743840150,-622.20751996,0.00027211,7]
[391715592,1760743840160,-184.31,0.00027286,2]
[391715593,1760743840169,-1072.63,0.00027397,2]
[391715594,1760743840178,-680.54598068,0.00028303,9]
[391715595,1760743840188,-153.0,0.00028986,2]
[391715596,1760743840197,-153.0,0.00028986,2]
[391715597,1760743840209,-153.0,0.00028986,2]
[391715598,1760743840219,-153.0,0.00028986,2]
[391715599,1760743840228,-153.0,0.00028986,2]
[391715601,1760743840237,-153.0,0.00028986,2]
[391715603,1760743840247,-153.0,0.00028986,2]
[391715605,1760743840256,-153.0,0.00028986,2]
[391715606,1760743840265,-153.0,0.00028986,2]
[391715607,1760743840275,-153.0,0.00028986,2]
[391715608,1760743840284,-153.0,0.00028986,2]
[391715609,1760743840294,-153.0,0.00028986,2]
[391715610,1760743840303,-153.0,0.00028986,2]
[391715611,1760743840312,-153.0,0.00028986,2]
[391715612,1760743840321,-153.0,0.00028986,2]
[391715613,1760743840331,-153.0,0.00028986,2]
[391715614,1760743840340,-153.0,0.00028986,2]
[391715616,1760743840349,-153.0,0.00028986,2]
[391715617,1760743840359,-153.0,0.00028986,2]
[391715618,1760743840368,-739.03063715,0.00029394,11]
[391715619,1760743840377,-1669.72447975,0.00029506,2]
[391715620,1760743840387,-2145.26,0.00030136,3]
[391715621,1760743840396,-266.46833863,0.00030136,14]
[391715622,1760743840406,-388.46991561,0.00030306,2]
[391715623,1760743840415,-797.65054579,0.00030485,14]
[391715624,1760743840424,-763.99,0.00030515,120]
[391715625,1760743840434,-153.0,0.00030575,2]
[391715626,1760743840443,-153.0,0.00030575,2]
[391715627,1760743840453,-500.0,0.000306,5]
[391715628,1760743840463,-151.0,0.00031,120]
[391715629,1760743840473,-4049.033,0.00031015,28]
[391715630,1760743840482,-263.652,0.00031015,28]
[391715631,1760743840492,-273.73,0.00031015,2]
[391715632,1760743840504,-856.39630884,0.00031576,16]
[391715633,1760743840513,-1669.72447975,0.00031985,2]
[391715634,1760743840522,-4999.999999,0.00032063,2]
[391715635,1760743840531,-3193.65219655,0.00032097,2]
[391715636,1760743840540,-4506.23889361,0.00032099,2]
[391715675,1760743842864,-2840.99048588,0.00032099,2]
[391715678,1760743842875,-3933.111318,0.00032099,2]
[391715681,1760743842994,-901.74041416,0.00032099,2]
[391715856,1760743927318,682.29463875,0.00032063,120]
[391715869,1760743965626,214.5,0.00032063,30]
[391716107,1760745031852,-167.22,0.00013578,2]
[391716109,1760745031862,-189.8163872,0.00014257,2]
[391716110,1760745031919,-5.1836128,0.00014257,2]
[391716111,1760745031929,-300.0,0.00014936,2]
[391716112,1760745031938,-96.129208,0.00014936,2]
[391716113,1760745031950,-53.870792,0.00014936,2]
[391716114,1760745031959,-195.0,0.00014936,2]
[391716115,1760745031970,-167.22,0.00015518,2]
[391716116,1760745031979,-167.22,0.00017457,2]
[391716117,1760745031988,-300.0,0.00017529,2]
[391716118,1760745031998,-380.98764831,0.00017529,2]
[391716119,1760745032010,-587.01235169,0.00017529,2]
[391716120,1760745032021,-78.98764831,0.0001753,2]
[391716121,1760745032033,-5105.55691751,0.0001753,2]
[391716122,1760745032059,-599.68191506,0.0001753,2]
[391716123,1760745032075,-1126.92569481,0.0001753,2]
[391716124,1760745032098,-3214.22081888,0.0001753,2]
[391716125,1760745032108,-167.22,0.00019397,2]
[391716126,1760745032118,-151.0,0.00019688,2]
[391716127,1760745032128,-151.0,0.00019688,2]
[391716128,1760745032138,-151.0,0.00019688,2]
[391716129,1760745032147,-151.0,0.00019688,2]
[391716130,1760745032157,-151.0,0.00019688,2]
[391716131,1760745032166,-151.0,0.00019688,2]
[391716132,1760745032176,-151.0,0.00019688,2]
[391716133,1760745032184,-151.0,0.00019688,2]
[391716134,1760745032194,-151.0,0.00019688,2]
[391716135,1760745032203,-151.0,0.00019688,2]
[391716136,1760745032212,-1170.39870183,0.000197,2]
[391716137,1760745032223,-884.8413238,0.000197,2]
[391716138,1760745032232,-1170.39870183,0.000199,2]
[391716139,1760745032241,-884.8413238,0.000199,2]
[391716140,1760745032251,-1170.39870183,0.000201,2]
[391716141,1760745032261,-884.8413238,0.000201,2]
[391716142,1760745032274,-1170.39870183,0.000203,2]
[391716143,1760745032283,-884.8413238,0.000203,2]
[391716144,1760745032293,-1170.39870183,0.000205,2]
[391716145,1760745032303,-884.8413238,0.000205,2]
[391716146,1760745032312,-193.23,0.00020656,2]
[391716147,1760745032322,-1170.39870183,0.000207,2]
[391716148,1760745032332,-550.0,0.00020899,2]
[391716149,1760745032341,-1170.39870183,0.000209,2]
[391716150,1760745032351,-1170.39870183,0.000211,2]
[391716151,1760745032360,-1170.39870183,0.000213,2]
[391716152,1760745032370,-167.22,0.00021337,2]
[391716153,1760745032380,-1170.39870183,0.000215,2]
[391716156,1760745032390,-754.00439336,0.00022298,2]
[391716158,1760745032399,-167.22,0.00023277,2]
[391716162,1760745032409,-1018.29,0.00023617,2]
[391716164,1760745032418,-927.40145975,0.00023686,2]
[391716165,1760745032427,-153.0,0.00024191,2]
[391716166,1760745032437,-153.0,0.00024191,2]
[391716167,1760745032446,-153.0,0.00024191,2]
[391716168,1760745032455,-153.0,0.00024191,2]
[391716169,1760745032467,-153.0,0.00024191,2]
[391716170,1760745032477,-153.0,0.00024191,2]
[391716171,1760745032486,-153.0,0.00024191,2]
[391716172,1760745032702,-153.0,0.00024191,2]
[391716173,1760745032712,-153.0,0.00024191,2]
[391716174,1760745032721,-153.0,0.00024191,2]
[391716175,1760745032731,-153.0,0.00024191,2]
[391716176,1760745032740,-153.0,0.00024191,2]
[391716177,1760745032749,-153.0,0.00024191,2]
[391716178,1760745032759,-153.0,0.00024191,2]
[391716179,1760745032769,-153.0,0.00024191,2]
[391716180,1760745032778,-153.0,0.00024191,2]
[391716181,1760745032789,-153.0,0.00024191,2]
[391716182,1760745032798,-153.0,0.00024191,2]
[391716183,1760745032807,-153.0,0.00024191,2]
[391716184,1760745032817,-153.0,0.00024191,2]
[391716185,1760745032827,-153.0,0.00024191,2]
[391716186,1760745032836,-153.0,0.00024191,2]
[391716187,1760745032846,-153.0,0.00024191,2]
[391716188,1760745032855,-153.0,0.00024191,2]
[391716189,1760745032865,-153.0,0.00024191,2]
[391716190,1760745032874,-153.0,0.00024191,2]
[391716191,1760745032883,-153.0,0.00024191,2]
[391716192,1760745032892,-289.26,0.00024448,2]
[391716193,1760745032902,-166.66,0.00025065,30]
[391716194,1760745032911,-2751.0,0.00025066,2]
[391716195,1760745032921,-167.22,0.00025216,2]
[391716196,1760745032930,-453.90263907,0.00025223,2]
[391716197,1760745032939,-168.79,0.00025394,2]
[391716198,1760745032949,-151.56,0.00025394,2]
[391716199,1760745032958,-500.0,0.00025592,30]
[391716200,1760745032968,-150.0,0.00025592,30]
[391716201,1760745032977,-500.0,0.00025592,2]
[391716202,1760745032987,-150.0,0.00025592,2]
[391716203,1760745032996,-500.0,0.00025592,30]
[391716204,1760745033006,-500.0,0.00025592,30]
[391716205,1760745033016,-150.0,0.00025592,2]
[391716206,1760745033026,-500.0,0.00025592,30]
[391716207,1760745033036,-150.0,0.00025592,2]
[391716208,1760745033047,-873.0,0.00025592,30]
[391716209,1760745033056,-500.0,0.00025592,30]
[391716210,1760745033066,-166.66,0.00025592,30]
[391716211,1760745033076,-200.0,0.00025594,2]
[391716212,1760745033085,-500.0,0.00025647,30]
[391716213,1760745033095,-500.0,0.00025647,30]
[391716214,1760745033105,-500.0,0.00025647,30]
[391716215,1760745033115,-500.0,0.00025647,30]
[391716216,1760745033124,-873.0,0.00025647,30]
[391716217,1760745033133,-500.0,0.00025647,30]
[391716218,1760745033146,-500.0,0.00025702,30]
[391716219,1760745033155,-500.0,0.00025702,30]
[391716220,1760745033174,-500.0,0.00025702,30]
[391716221,1760745033187,-196.19407106,0.00025702,30]
[391716222,1760745033197,-873.0,0.00025702,30]
[391716223,1760745033207,-500.0,0.00025702,30]
[391716224,1760745033218,-500.0,0.00025756,30]
[391716225,1760745033228,-500.0,0.00025756,30]
[391716226,1760745033238,-556.79108516,0.00025756,30]
[391716227,1760745033248,-873.0,0.00025756,30]
[391716228,1760745033258,-500.0,0.00025756,30]
[391716229,1760745033268,-500.0,0.00025811,30]
[391716230,1760745033278,-500.0,0.00025811,30]
[391716231,1760745033287,-873.0,0.00025811,30]
[391716232,1760745033297,-500.0,0.00025811,30]
[391716233,1760745033307,-500.0,0.00025866,30]
[391716234,1760745033317,-500.0,0.00025866,30]
[391716235,1760745033327,-873.0,0.00025866,30]
[391716236,1760745033337,-500.0,0.00025866,30]
[391716237,1760745033347,-500.0,0.00025921,30]
[391716238,1760745033357,-500.0,0.00025921,30]
[391716239,1760745033367,-873.0,0.00025921,30]
[391716240,1760745033377,-629.6173567,0.00025921,30]
[391716241,1760745033387,-500.0,0.00025956,2]
[391716242,1760745033397,-500.0,0.00025976,30]
[391716243,1760745033407,-510.80223538,0.00025976,30]
[391716244,1760745033417,-873.0,0.00025976,30]
[391716245,1760745033427,-500.0,0.0002603,30]
[391716246,1760745033438,-873.0,0.0002603,30]
[391716247,1760745033448,-150.0,0.00026035,2]
[391716248,1760745033457,-500.0,0.00026035,2]
[391716249,1760745033467,-500.0,0.00026035,2]
[391716250,1760745033478,-847.0,0.00026035,2]
[391716251,1760745033488,-500.0,0.00026035,2]
[391716252,1760745033498,-150.0,0.00026035,2]
[391716253,1760745033507,-500.0,0.00026035,2]
[391716254,1760745033517,-500.0,0.00026035,2]
[391716255,1760745033527,-500.0,0.00026035,2]
[391716256,1760745033537,-500.0,0.00026035,2]
[391716257,1760745033547,-300.0,0.00026035,2]
[391716258,1760745033556,-150.0,0.00026035,2]
[391716259,1760745033566,-500.0,0.00026035,2]
[391716260,1760745033575,-500.0,0.00026035,2]
[391716261,1760745033585,-1988.0,0.00026035,2]
[391716262,1760745033595,-150.0,0.00026035,2]
[391716263,1760745033605,-500.0,0.00026035,2]
[391716264,1760745033615,-1664.0,0.00026035,2]
[391716265,1760745033629,-150.0,0.00026035,2]
[391716266,1760745033639,-514.0,0.00026035,2]
[391716267,1760745033649,-4000.0,0.00026035,2]
[391716268,1760745033659,-500.0,0.00026085,30]
[391716269,1760745033669,-873.0,0.00026085,30]
[391716270,1760745033680,-289.83243189,0.0002609,2]
[391716271,1760745033690,-500.0,0.0002609,2]
[391716272,1760745033702,-500.0,0.0002609,2]
[391716273,1760745033712,-847.0,0.0002609,2]
[391716274,1760745033722,-500.0,0.0002609,2]
[391716275,1760745033735,-150.81914312,0.0002609,2]
[391716276,1760745033746,-500.0,0.0002609,2]
[391716277,1760745033756,-500.0,0.0002609,2]
[391716278,1760745033767,-500.0,0.0002609,2]
[391716279,1760745033777,-500.0,0.0002609,2]
[391716280,1760745033787,-300.0,0.0002609,2]
[391716281,1760745033798,-150.0,0.0002609,2]
[391716282,1760745033808,-500.0,0.0002609,2]
[391716283,1760745033818,-500.0,0.0002609,2]
[391716284,1760745033828,-1988.0,0.0002609,2]
[391716285,1760745033838,-150.0,0.0002609,2]
[391716286,1760745033848,-500.0,0.0002609,2]
[391716287,1760745033858,-1664.0,0.0002609,2]
[391716288,1760745033868,-200.59891275,0.0002609,2]
[391716289,1760745033878,-514.0,0.0002609,2]
[391716290,1760745033888,-166.66,0.0002612,30]
[391716291,1760745033898,-500.0,0.0002614,30]
[391716292,1760745033908,-873.0,0.0002614,30]
[391716293,1760745033917,-416.06059713,0.00026145,2]
[391716294,1760745033928,-500.0,0.00026145,2]
[391716295,1760745033937,-847.0,0.00026145,2]
[391716296,1760745033947,-500.0,0.00026145,2]
[391716297,1760745033957,-500.0,0.00026145,2]
[391716298,1760745033967,-500.0,0.00026145,2]
[391716299,1760745033977,-500.0,0.00026145,2]
[391716300,1760745033987,-500.0,0.00026145,2]
[391716301,1760745033996,-300.0,0.00026145,2]
[391716302,1760745034007,-200.82157195,0.00026145,2]
[391716303,1760745034017,-500.0,0.00026145,2]
[391716304,1760745034027,-500.0,0.00026145,2]
[391716305,1760745034037,-1988.0,0.00026145,2]
[391716306,1760745034047,-150.0,0.00026145,2]
[391716307,1760745034057,-500.0,0.00026145,2]
[391716308,1760745034066,-1664.0,0.00026145,2]
[391716309,1760745034076,-514.0,0.00026145,2]
[391716310,1760745034086,-500.0,0.00026195,30]
[391716311,1760745034096,-873.0,0.00026195,30]
[391716312,1760745034105,-500.0,0.00026199,2]
[391716313,1760745034115,-847.0,0.00026199,2]
[391716314,1760745034128,-500.0,0.00026199,2]
[391716315,1760745034138,-500.0,0.00026199,2]
[391716316,1760745034148,-500.0,0.00026199,2]
[391716317,1760745034159,-500.0,0.00026199,2]
[391716318,1760745034169,-500.0,0.00026199,2]
[391716319,1760745034179,-300.0,0.00026199,2]
[391716320,1760745034188,-500.0,0.00026199,2]
[391716321,1760745034198,-500.0,0.00026199,2]
[391716322,1760745034208,-1988.0,0.00026199,2]
[391716323,1760745034218,-150.0,0.00026199,2]
[391716324,1760745034228,-500.0,0.00026199,2]
[391716325,1760745034238,-1664.0,0.00026199,2]
[391716326,1760745034248,-514.0,0.00026199,2]
[391716327,1760745034258,-319.0070684,0.0002625,30]